[Event "FIDE Womens World Cup 2021"]
[Site "Sochi"]
[Date "2021.07.16"]
[Round "2.2"]
[White "Munkhzul, Turmunkh"]
[Black "Shuvalova, Polina"]
[Result "0-1"]
[ECO "C88"]
[WhiteElo "2278"]
[BlackElo "2489"]
[Annotator "ChessBase"]
[PlyCount "178"]
[EventDate "2021.07.12"]
[EventType "k.o."]
[EventCountry "RUS"]
[SourceTitle "playchess.com"]
[Source "ChessBase"]
[SourceQuality "1"]
[TimeControl "40/5400+30:1800+30"]

1. e4 {[%emt 0:00:02]} e5 {[%emt 0:00:07]} 2. Nf3 {[%emt 0:00:06]} Nc6 {[%emt 0:00:07]} 3. Bb5 {[%emt 0:00:10]} a6 {[%emt 0:00:06]} 4. Ba4 {[%emt 0:00:13]} Nf6 {[%emt 0:00:08]} 5. O-O {[%emt 0:00:27]} Be7 {[%emt 0:00:09]} 6. Re1 {[%emt 0:00:15]} b5 {[%emt 0:00:08]} 7. Bb3 {[%emt 0:00:06]} O-O {[%emt 0:00:19]} 8. a4 {[%emt 0:00:16]} b4 {[%emt 0:00:11]} 9. d4 {[%emt 0:00:29]} d6 {[%emt 0:00:12]} 10. dxe5 {[%emt 0:00:33]} Nxe5 {[%emt 0:00:06]} 11. Nxe5 {[%emt 0:00:43]} dxe5 {[%emt 0:00:05]} 12. Qe2 {[%emt 0:00:09]} Bc5 {[%emt 0:00:32]} 13. Be3 {[%emt 0:10:22]} Qe7 {[%emt 0:07:08]} 14. a5 {[%emt 0:03:00]} Rd8 {[%emt 0:04:16]} 15. Nd2 {[%emt 0:03:49]} Bd4 {[%emt 0:08:23]} 16. Bxd4 {[%emt 0:09:49]} Rxd4 {[%emt 0:00:17]} 17. c3 {[%emt 0:00:19]} bxc3 {[%emt 0:02:20]} 18. bxc3 {[%emt 0:00:06]} Rd8 {[%emt 0:00:11]} 19. Bc4 {[%emt 0:04:44]} Qc5 {[%emt 0:08:00]} 20. Nb3 {[%emt 0:08:25]} Qc6 {[%emt 0:01:12]} 21. f3 {[%emt 0:04:57]} Rb8 {[%emt 0:04:21]} 22. Red1 {[%emt 0:01:52]} Rxd1+ {[%emt 0:01:25]} 23. Rxd1 {[%emt 0:00:07]} Be6 {[%emt 0:00:08]} 24. Nd2 {[%emt 0:07:13]} Rd8 {[%emt 0:07:40]} 25. Rb1 {[%emt 0:16:34]} h6 {[%emt 0:14:14]} 26. Bxe6 {[%emt 0:02:44]} Qxe6 {[%emt 0:00:09]} 27. Rb2 {[%emt 0:04:27]} h5 {[%emt 0:02:50]} 28. h4 {[%emt 0:01:20]} g6 {[%emt 0:01:47]} 29. Kh2 {[%emt 0:00:28]} Rd6 {[%emt 0:05:48]} 30. Qe3 {[%emt 0:03:06]} Kg7 {[%emt 0:02:15]} 31. Nf1 {[%emt 0:00:37]} Rd1 {[%emt 0:05:37]} 32. Qe2 {[%emt 0:02:04]} Ra1 {[%emt 0:03:23]} 33. Ne3 {[%emt 0:03:25]} Rxa5 {[%emt 0:06:06]} 34. Qf2 {[%emt 0:02:10]} Ra3 {[%emt 0:01:09]} 35. Qe1 {[%emt 0:04:37]} Rb3 {[%emt 0:05:33]} 36. Rc2 {[%emt 0:04:07]} a5 {[%emt 0:02:21]} 37. Ra2 {[%emt 0:00:31]} Qb6 {[%emt 0:01:54]} 38. Nc4 {[%emt 0:01:59]} Qc5 {[%emt 0:01:01]} 39. Nxa5 {[%emt 0:00:28]} Rxc3 {[%emt 0:01:13]} 40. Nb7 {[%emt 0:00:29]} Qd4 {[%emt 0:03:04]} 41. Rd2 {[%emt 0:30:56]} Qb4 {[%emt 0:05:30]} 42. Rd3 {[%emt 0:00:00]} Rb3 {[%emt 0:01:04]} 43. Qxb4 {[%emt 0:00:00]} Rxb4 {[%emt 0:00:02]} 44. Nc5 {[%emt 0:00:00]} Rc4 {[%emt 0:02:03]} 45. Na6 {[%emt 0:00:00]} Kf8 {[%emt 0:01:22]} 46. Rb3 {[%emt 0:00:00]} Ke7 {[%emt 0:01:38]} 47. Kg3 {[%emt 0:00:00]} Nd7 {[%emt 0:02:28]} 48. Nb4 {[%emt 0:00:00]} c6 {[%emt 0:00:12]} 49. Nd3 {[%emt 0:00:00]} Kd6 {[%emt 0:01:00]} 50. Nb2 {[%emt 0:00:00]} Rd4 {[%emt 0:00:13]} 51. Ra3 {[%emt 0:00:00]} c5 {[%emt 0:01:13]} 52. Ra7 {[%emt 0:00:00]} Kc6 {[%emt 0:02:23]} 53. Na4 {[%emt 0:00:00]} Rd3 {[%emt 0:01:39]} 54. Nb2 {[%emt 0:00:00]} Rd4 {[%emt 0:01:42]} 55. Na4 {[%emt 0:00:00]} Rb4 {[%emt 0:00:28]} 56. Nc3 {[%emt 0:00:00]} Rb7 {[%emt 0:01:04]} 57. Ra6+ {[%emt 0:00:00]} Nb6 {[%emt 0:01:27]} 58. Kf2 {[%emt 0:00:00]} Rb8 {[%emt 0:00:34]} 59. Ra7 {[%emt 0:00:00]} Rb7 {[%emt 0:00:03]} 60. Ra6 {[%emt 0:00:00]} c4 {[%emt 0:00:11]} 61. Ra5 {[%emt 0:00:00]} Nd7 {[%emt 0:04:50]} 62. Ra8 {[%emt 0:00:00]} Kc5 {[%emt 0:00:52]} 63. Rc8+ {[%emt 0:00:00]} Kb4 {[%emt 0:00:33]} 64. Nd5+ {[%emt 0:00:00]} Kb3 {[%emt 0:00:03]} 65. Rc6 {[%emt 0:00:04]} Nb8 {[%emt 0:02:01]} 66. Rc8 {[%emt 0:00:31]} Na6 {[%emt 0:00:16]} 67. Ke2 {[%emt 0:00:24]} Nb4 {[%emt 0:00:31]} 68. Ke3 {[%emt 0:06:05]} f5 {[%emt 0:04:53]} 69. Rc5 {[%emt 0:01:13]} Nxd5+ {[%emt 0:02:54]} 70. exd5 {[%emt 0:01:17]} Rd7 {[%emt 0:00:12]} 71. f4 {[%emt 0:00:19]} Kb4 {[%emt 0:01:03]} 72. Rc6 {[%emt 0:01:12]} Rxd5 {[%emt 0:00:05]} 73. fxe5 {[%emt 0:00:05]} Rxe5+ {[%emt 0:00:13]} 74. Kd2 {[%emt 0:00:12]} Re4 {[%emt 0:01:13]} 75. Rb6+ {[%emt 0:00:05]} Kc5 {[%emt 0:00:05]} 76. Rxg6 {[%emt 0:03:07]} Rg4 {[%emt 0:02:36]} 77. Rf6 {[%emt 0:01:32]} Rxg2+ {[%emt 0:00:06]} 78. Ke1 {[%emt 0:00:27]} Rg1+ {[%emt 0:01:50]} 79. Kf2 {[%emt 0:00:29]} Rd1 {[%emt 0:00:18]} 80. Rxf5+ {[%emt 0:01:30]} Rd5 {[%emt 0:00:07]} 81. Rf8 {[%emt 0:00:40]} c3 {[%emt 0:00:17]} 82. Ke2 {[%emt 0:01:55]} Kc4 {[%emt 0:00:17]} 83. Rb8 {[%emt 0:00:35]} c2 {[%emt 0:01:10]} 84. Rc8+ {[%emt 0:00:06]} Kb3 {[%emt 0:00:02]} 85. Rb8+ {[%emt 0:00:17]} Kc3 {[%emt 0:00:04]} 86. Rc8+ {[%emt 0:00:15]} Kb2 {[%emt 0:00:03]} 87. Rb8+ {[%emt 0:00:04]} Kc1 {[%emt 0:00:03]} 88. Rc8 {[%emt 0:00:39]} Rd7 {[%emt 0:00:08]} 89. Re8 {[%emt 0:00:19]} Rb7 {[%emt 0:00:40]} 0-1

[Event "FIDE Womens World Cup 2021"]
[Site "Sochi"]
[Date "2021.07.17"]
[Round "2.3"]
[White "Javakhishvili, Lela"]
[Black "Mammadova, Gulnar"]
[Result "0-1"]
[ECO "E73"]
[WhiteElo "2470"]
[BlackElo "2385"]
[Annotator "ChessBase"]
[PlyCount "176"]
[EventDate "2021.07.12"]
[EventType "k.o."]
[EventCountry "RUS"]
[SourceTitle "playchess.com"]
[Source "ChessBase"]
[SourceQuality "1"]
[TimeControl "1500+10"]

1. d4 {[%emt 0:00:02]} Nf6 {[%emt 0:00:04]} 2. c4 {[%emt 0:00:03]} g6 {[%emt 0:00:02]} 3. Nc3 {[%emt 0:00:03]} Bg7 {[%emt 0:00:02]} 4. e4 {[%emt 0:00:03]} d6 {[%emt 0:00:01]} 5. Be2 {[%emt 0:00:03]} O-O {[%emt 0:00:32]} 6. Be3 {[%emt 0:00:02]} c5 {[%emt 0:01:27]} 7. d5 {[%emt 0:00:09]} e6 {[%emt 0:01:40]} 8. Nf3 {[%emt 0:00:03]} exd5 {[%emt 0:00:03]} 9. cxd5 {[%emt 0:00:02]} Re8 {[%emt 0:00:34]} 10. Nd2 {[%emt 0:00:07]} Na6 {[%emt 0:01:06]} 11. O-O {[%emt 0:00:24]} Nc7 {[%emt 0:00:03]} 12. a4 {[%emt 0:00:59]} Rb8 {[%emt 0:01:10]} 13. h3 {[%emt 0:01:34]} b6 {[%emt 0:01:11]} 14. Qc2 {[%emt 0:00:24]} a6 {[%emt 0:01:14]} 15. Nc4 {[%emt 0:00:30]} b5 {[%emt 0:01:00]} 16. Na5 {[%emt 0:01:33]} Bd7 {[%emt 0:00:21]} 17. Bf3 {[%emt 0:01:39]} b4 {[%emt 0:00:36]} 18. Nb1 {[%emt 0:00:10]} Ncxd5 {[%emt 0:00:37]} 19. Nc4 {[%emt 0:01:25]} Nxe3 {[%emt 0:01:36]} 20. fxe3 {[%emt 0:00:50]} Qc7 {[%emt 0:01:32]} 21. Qd3 {[%emt 0:00:54]} Bc6 {[%emt 0:00:33]} 22. Qxd6 {[%emt 0:01:05]} Qxd6 {[%emt 0:00:20]} 23. Nxd6 {[%emt 0:00:02]} Re6 {[%emt 0:00:02]} 24. e5 {[%emt 0:02:27]} Bxf3 {[%emt 0:00:15]} 25. Rxf3 {[%emt 0:01:01]} Rxe5 {[%emt 0:00:26]} 26. Nd2 {[%emt 0:00:03]} Re6 {[%emt 0:01:56]} 27. N2c4 {[%emt 0:02:05]} Bf8 {[%emt 0:03:29]} 28. Raf1 {[%emt 0:01:11]} Be7 {[%emt 0:02:37]} 29. e4 {[%emt 0:04:47]} Nxe4 {[%emt 0:00:14]} 30. Nxf7 {[%emt 0:00:03]} Kg7 {[%emt 0:00:17]} 31. Nfe5 {[%emt 0:00:43]} Bf6 {[%emt 0:00:42]} 32. Nd3 {[%emt 0:02:27]} Rd8 {[%emt 0:00:51]} 33. Nf4 {[%emt 0:00:06]} Bd4+ {[%emt 0:00:16]} 34. Kh2 {[%emt 0:00:05]} Re7 {[%emt 0:00:25]} 35. Re1 {[%emt 0:00:11]} Rde8 {[%emt 0:00:49]} 36. Nd5 {[%emt 0:00:21]} Rd7 {[%emt 0:00:20]} 37. Nf4 {[%emt 0:02:12]} Rf7 {[%emt 0:00:49]} 38. g3 {[%emt 0:00:22]} Kg8 {[%emt 0:00:36]} 39. Ref1 {[%emt 0:00:31]} Ng5 {[%emt 0:00:27]} 40. Rd3 {[%emt 0:00:01]} Ref8 {[%emt 0:00:27]} 41. h4 {[%emt 0:00:17]} Ne6 {[%emt 0:00:25]} 42. Nxe6 {[%emt 0:00:26]} Rxf1 {[%emt 0:00:01]} 43. Nxf8 {[%emt 0:00:02]} Kxf8 {[%emt 0:00:07]} 44. Rd2 {[%emt 0:00:20]} Kf7 {[%emt 0:00:21]} 45. Re2 {[%emt 0:00:09]} Kf6 {[%emt 0:00:44]} 46. Kg2 {[%emt 0:00:20]} Rb1 {[%emt 0:00:02]} 47. g4 {[%emt 0:00:17]} h5 {[%emt 0:00:06]} 48. g5+ {[%emt 0:00:08]} Kg7 {[%emt 0:00:07]} 49. Re7+ {[%emt 0:00:05]} Kf8 {[%emt 0:00:02]} 50. Re2 {[%emt 0:00:02]} b3 {[%emt 0:00:19]} 51. Kf3 {[%emt 0:00:07]} Rf1+ {[%emt 0:00:18]} 52. Kg3 {[%emt 0:00:21]} Rg1+ {[%emt 0:00:12]} 53. Kf3 {[%emt 0:00:05]} Rf1+ {[%emt 0:00:01]} 54. Kg3 {[%emt 0:00:01]} Rf7 {[%emt 0:00:15]} 55. Na5 {[%emt 0:00:15]} Re7 {[%emt 0:00:11]} 56. Rxe7 {[%emt 0:00:10]} Kxe7 {[%emt 0:00:01]} 57. Nxb3 {[%emt 0:00:01]} Be5+ {[%emt 0:00:08]} 58. Kf3 {[%emt 0:00:03]} Kd6 {[%emt 0:00:06]} 59. Nd2 {[%emt 0:00:08]} Kd5 {[%emt 0:00:11]} 60. b3 {[%emt 0:00:01]} Kd4 {[%emt 0:00:09]} 61. Ne4 {[%emt 0:00:32]} Bc7 {[%emt 0:00:03]} 62. Nf6 {[%emt 0:00:12]} a5 {[%emt 0:00:18]} 63. Nd7 {[%emt 0:00:19]} Bd8 {[%emt 0:00:25]} 64. Nf8 {[%emt 0:00:06]} Kc3 {[%emt 0:00:01]} 65. Nxg6 {[%emt 0:00:03]} Kxb3 {[%emt 0:00:01]} 66. Nf4 {[%emt 0:00:22]} c4 {[%emt 0:00:05]} 67. Nd5 {[%emt 0:00:25]} c3 {[%emt 0:00:03]} 68. g6 {[%emt 0:00:01]} c2 {[%emt 0:00:14]} 69. g7 {[%emt 0:00:01]} c1=Q {[%emt 0:00:04]} 70. g8=Q {[%emt 0:00:02]} Qf1+ {[%emt 0:00:28]} 71. Ke4 {[%emt 0:00:08]} Qc4+ {[%emt 0:00:05]} 72. Kf5 {[%emt 0:00:22]} Bxh4 {[%emt 0:00:34]} 73. Qb8+ Ka3 {[%emt 0:00:15]} 74. Qd6+ {[%emt 0:00:20]} Ka2 {[%emt 0:00:03]} 75. Qh2+ {[%emt 0:00:13]} Kb3 {[%emt 0:00:16]} 76. Qb8+ {[%emt 0:00:26]} Ka2 {[%emt 0:00:01]} 77. Qh2+ {[%emt 0:00:02]} Kb1 {[%emt 0:00:17]} 78. Qh1+ {[%emt 0:00:16]} Kb2 {[%emt 0:00:04]} 79. Qh2+ {[%emt 0:00:04]} Qc2+ {[%emt 0:00:04]} 80. Qxc2+ {[%emt 0:00:04]} Kxc2 {[%emt 0:00:02]} 81. Nf4 {[%emt 0:00:22]} Kb3 {[%emt 0:00:04]} 82. Nd3 {[%emt 0:00:03]} Kxa4 {[%emt 0:00:17]} 83. Kg6 {[%emt 0:00:18]} Be7 {[%emt 0:00:06]} 84. Kxh5 {[%emt 0:00:02]} Kb3 {[%emt 0:00:02]} 85. Kg4 {[%emt 0:00:05]} a4 {[%emt 0:00:03]} 86. Kf3 {[%emt 0:00:01]} a3 {[%emt 0:00:28]} 87. Ke2 {[%emt 0:00:22]} Bg5 {[%emt 0:00:14]} 88. Nc5+ {[%emt 0:00:17]} Kc4 {[%emt 0:00:06]} 0-1

[Event "FIDE Womens World Cup 2021"]
[Site "Sochi"]
[Date "2021.07.17"]
[Round "2.3"]
[White "Paehtz, Elisabeth"]
[Black "Salimova, Nurgyul"]
[Result "1-0"]
[ECO "D45"]
[WhiteElo "2466"]
[BlackElo "2395"]
[Annotator "ChessBase"]
[PlyCount "47"]
[EventDate "2021.07.12"]
[EventType "k.o."]
[EventCountry "RUS"]
[SourceTitle "playchess.com"]
[Source "ChessBase"]
[SourceQuality "1"]
[TimeControl "1500+10"]

1. d4 {[%emt 0:00:02]} Nf6 {[%emt 0:00:02]} 2. Nf3 {[%emt 0:00:02]} e6 {[%emt 0:00:08]} 3. c4 {[%emt 0:00:02]} d5 {[%emt 0:00:04]} 4. Nc3 {[%emt 0:00:02]} c6 {[%emt 0:00:04]} 5. e3 {[%emt 0:00:01]} Nbd7 {[%emt 0:00:15]} 6. Be2 {[%emt 0:00:02]} dxc4 {[%emt 0:00:06]} 7. a4 {[%emt 0:00:01]} c5 {[%emt 0:01:50]} 8. O-O {[%emt 0:00:03]} cxd4 {[%emt 0:00:08]} 9. Qxd4 {[%emt 0:00:02]} Bc5 {[%emt 0:02:11]} 10. Qxc4 {[%emt 0:00:02]} Qe7 {[%emt 0:00:46]} 11. e4 {[%emt 0:00:02]} Ng4 {[%emt 0:03:45]} 12. Bf4 {[%emt 0:01:29]} Nb6 {[%emt 0:05:32]} 13. Qb3 {[%emt 0:03:30]} e5 {[%emt 0:00:59]} 14. Bb5+ {[%emt 0:00:07]} Kf8 {[%emt 0:00:31]} 15. Bg3 {[%emt 0:00:37]} Be6 {[%emt 0:02:19]} 16. Nd5 {[%emt 0:00:35]} Bxd5 {[%emt 0:03:48]} 17. exd5 {[%emt 0:00:02]} f6 {[%emt 0:00:16]} 18. a5 {[%emt 0:01:22]} Nc8 {[%emt 0:00:46]} 19. Rac1 {[%emt 0:01:46]} b6 {[%emt 0:00:53]} 20. Qa4 {[%emt 0:03:21]} Nh6 {[%emt 0:00:59]} 21. Bd7 {[%emt 0:01:19]} e4 {[%emt 0:02:22]} 22. Rfe1 {[%emt 0:00:49]} Bb4 {[%emt 0:00:48]} 23. d6 {[%emt 0:00:27]} Qd8 {[%emt 0:00:03]} 24. Rxe4 {[%emt 0:00:27]} 1-0

[Event "FIDE Womens World Cup 2021"]
[Site "Sochi"]
[Date "2021.07.17"]
[Round "2.3"]
[White "Sebag, Marie"]
[Black "Skripchenko, Almira"]
[Result "1/2-1/2"]
[ECO "C41"]
[WhiteElo "2438"]
[BlackElo "2411"]
[Annotator "NA"]
[PlyCount "72"]
[EventDate "2021.07.12"]
[EventType "k.o."]
[EventCountry "RUS"]
[SourceTitle "playchess.com"]
[Source "ChessBase"]
[SourceQuality "1"]
[TimeControl "1500+10"]

1. e4 {[%emt 0:00:03]} d6 {[%emt 0:00:03]} 2. d4 {[%emt 0:00:06]} Nf6 {[%emt 0:00:02]} 3. Nc3 {[%emt 0:00:10]} e5 {[%emt 0:00:02]} 4. Nf3 {[%emt 0:00:21]} Nbd7 {[%emt 0:00:03]} 5. Bc4 {[%emt 0:00:10]} Be7 {[%emt 0:00:06]} 6. O-O {[%emt 0:00:07]} O-O {[%emt 0:00:03]} 7. a4 {[%emt 0:00:11]} a6 {[%emt 0:00:53]} 8. a5 {[%emt 0:00:19]} h6 {[%emt 0:00:16]} 9. h3 {[%emt 0:01:14]} exd4 {[%emt 0:00:36]} 10. Nxd4 {[%emt 0:00:48]} Ne5 {[%emt 0:00:17]} 11. Ba2 {[%emt 0:00:24]} c5 {[%emt 0:01:07]} 12. Nde2 {[%emt 0:00:18]} Be6 {[%emt 0:01:30]} 13. Nf4 {[%emt 0:05:20]} Bxa2 {[%emt 0:00:04]} 14. Rxa2 {[%emt 0:00:02]} Nc6 {[%emt 0:00:02]} 15. Nfd5 {[%emt 0:01:03]} Re8 {[%emt 0:07:55]} 16. Qf3 {[%emt 0:00:22]} Nb4 {[%emt 0:04:48]} 17. Nxb4 {[%emt 0:05:58]} cxb4 {[%emt 0:00:02]} 18. Ne2 {[%emt 0:03:20]} Qc8 {[%emt 0:03:53]} 19. b3 {[%emt 0:01:16]} Qe6 {[%emt 0:00:04]} 20. Ng3 {[%emt 0:05:26]} d5 {[%emt 0:00:01]} 21. e5 {[%emt 0:00:05]} Qxe5 {[%emt 0:00:15]} 22. Bb2 {[%emt 0:00:02]} d4 {[%emt 0:01:55]} 23. Nf5 {[%emt 0:01:11]} Bc5 {[%emt 0:00:03]} 24. Raa1 {[%emt 0:00:13]} Rad8 {[%emt 0:01:45]} 25. Rad1 {[%emt 0:00:01]} Rd7 {[%emt 0:00:24]} 26. Rd3 {[%emt 0:00:19]} Rd5 {[%emt 0:00:58]} 27. Ne3 {[%emt 0:00:08]} Rd7 {[%emt 0:00:14]} 28. Nf5 {[%emt 0:00:07]} Red8 {[%emt 0:00:59]} 29. Rfd1 {[%emt 0:00:07]} Kh7 {[%emt 0:00:18]} 30. Ng3 {[%emt 0:00:35]} Qe6 {[%emt 0:00:20]} 31. Nf5 {[%emt 0:00:06]} Qe5 {[%emt 0:00:18]} 32. Ng3 {[%emt 0:00:01]} b6 {[%emt 0:00:22]} 33. axb6 {[%emt 0:00:06]} Bxb6 {[%emt 0:00:01]} 34. Qc6 {[%emt 0:00:10]} Rd6 {[%emt 0:00:24]} 35. Qb7 {[%emt 0:00:02]} a5 {[%emt 0:00:21]} 36. Qxf7 {[%emt 0:00:15]} R8d7 1/2-1/2

[Event "FIDE Womens World Cup 2021"]
[Site "Sochi"]
[Date "2021.07.17"]
[Round "2.3"]
[White "Yip, Carissa"]
[Black "Buksa, Nataliya"]
[Result "1-0"]
[ECO "B48"]
[WhiteElo "2430"]
[BlackElo "2413"]
[Annotator "NA"]
[PlyCount "107"]
[EventDate "2021.07.12"]
[EventType "k.o."]
[EventCountry "RUS"]
[SourceTitle "playchess.com"]
[Source "ChessBase"]
[SourceQuality "1"]
[TimeControl "1500+10"]

1. e4 {[%emt 0:00:01]} c5 {[%emt 0:00:01]} 2. Nf3 {[%emt 0:00:01]} e6 {[%emt 0:00:01]} 3. d4 {[%emt 0:00:01]} cxd4 {[%emt 0:00:01]} 4. Nxd4 {[%emt 0:00:01]} Nc6 {[%emt 0:00:01]} 5. Nc3 {[%emt 0:00:01]} Qc7 {[%emt 0:00:00]} 6. Be3 {[%emt 0:00:01]} a6 {[%emt 0:00:06]} 7. Qf3 {[%emt 0:00:03]} Nf6 {[%emt 0:00:01]} 8. O-O-O {[%emt 0:00:04]} Ne5 {[%emt 0:00:02]} 9. Qg3 {[%emt 0:00:04]} b5 {[%emt 0:00:01]} 10. f4 {[%emt 0:00:06]} Neg4 {[%emt 0:00:01]} 11. Bd2 {[%emt 0:00:12]} b4 {[%emt 0:01:19]} 12. Na4 {[%emt 0:00:02]} h5 {[%emt 0:00:13]} 13. Bd3 {[%emt 0:00:03]} d5 {[%emt 0:00:14]} 14. e5 {[%emt 0:00:06]} Ne4 {[%emt 0:00:01]} 15. Bxe4 {[%emt 0:00:14]} dxe4 {[%emt 0:00:01]} 16. h3 {[%emt 0:00:01]} Nh6 {[%emt 0:00:01]} 17. Bxb4 {[%emt 0:00:13]} Bxb4 {[%emt 0:02:14]} 18. Qxg7 {[%emt 0:00:01]} Rg8 {[%emt 0:00:01]} 19. Qxh6 {[%emt 0:00:08]} Bd7 {[%emt 0:00:56]} 20. f5 {[%emt 0:01:12]} Bf8 {[%emt 0:06:03]} 21. Qxh5 {[%emt 0:03:53]} Bxa4 {[%emt 0:00:48]} 22. fxe6 {[%emt 0:00:05]} O-O-O {[%emt 0:00:38]} 23. Qe2 {[%emt 0:00:18]} Qb6 {[%emt 0:07:44]} 24. exf7 {[%emt 0:03:02]} Rg6 {[%emt 0:03:28]} 25. Qc4+ {[%emt 0:00:04]} Bc6 {[%emt 0:00:07]} 26. Ne6 {[%emt 0:04:34]} Rxe6 {[%emt 0:01:18]} 27. Qxe6+ {[%emt 0:00:03]} Kb7 {[%emt 0:00:01]} 28. Qb3 {[%emt 0:02:29]} Qxb3 {[%emt 0:01:00]} 29. axb3 {[%emt 0:00:01]} Rc8 {[%emt 0:00:01]} 30. e6 {[%emt 0:00:14]} Be7 {[%emt 0:00:16]} 31. Rhe1 {[%emt 0:00:31]} Rh8 {[%emt 0:00:25]} 32. Kb1 {[%emt 0:00:14]} Kc8 {[%emt 0:00:36]} 33. Rd4 {[%emt 0:00:15]} Rh6 {[%emt 0:00:36]} 34. Rdxe4 {[%emt 0:00:27]} Bxe4 {[%emt 0:00:49]} 35. Rxe4 {[%emt 0:00:01]} Rf6 {[%emt 0:00:05]} 36. g4 {[%emt 0:00:45]} Kd8 {[%emt 0:00:08]} 37. b4 {[%emt 0:00:45]} Bf8 {[%emt 0:00:25]} 38. Ka2 {[%emt 0:01:36]} Rf3 {[%emt 0:00:36]} 39. h4 {[%emt 0:00:15]} Ke7 {[%emt 0:00:19]} 40. g5 {[%emt 0:00:27]} Rf5 {[%emt 0:00:37]} 41. Kb3 {[%emt 0:00:22]} Bg7 {[%emt 0:00:03]} 42. c3 {[%emt 0:00:06]} Bf8 {[%emt 0:00:02]} 43. Kc4 {[%emt 0:00:34]} Bg7 {[%emt 0:00:01]} 44. Kd3 {[%emt 0:00:41]} Bf8 {[%emt 0:00:04]} 45. c4 {[%emt 0:01:08]} Bg7 {[%emt 0:00:48]} 46. c5 {[%emt 0:00:23]} Rf3+ {[%emt 0:00:04]} 47. Re3 {[%emt 0:00:50]} Rf4 {[%emt 0:00:01]} 48. Re4 {[%emt 0:00:38]} Rf3+ {[%emt 0:00:09]} 49. Ke2 {[%emt 0:00:12]} Rb3 {[%emt 0:00:31]} 50. h5 {[%emt 0:00:50]} Bxb2 {[%emt 0:00:01]} 51. Rc4 {[%emt 0:00:37]} Be5 {[%emt 0:00:14]} 52. c6 {[%emt 0:00:19]} Bc7 {[%emt 0:00:21]} 53. Rd4 {[%emt 0:00:58]} Rb2+ {[%emt 0:00:03]} 54. Kd1 {[%emt 0:00:05]} 1-0

[Event "FIDE Womens World Cup 2021"]
[Site "Sochi"]
[Date "2021.07.17"]
[Round "2.3"]
[White "Badelka, Olga"]
[Black "Matnadze, Ana"]
[Result "0-1"]
[ECO "D35"]
[WhiteElo "2418"]
[BlackElo "2421"]
[Annotator "NA"]
[PlyCount "74"]
[EventDate "2021.07.12"]
[EventType "k.o."]
[EventCountry "RUS"]
[SourceTitle "playchess.com"]
[Source "ChessBase"]
[SourceQuality "1"]
[TimeControl "1500+10"]

1. d4 {[%emt 0:00:03]} Nf6 {[%emt 0:00:03]} 2. c4 {[%emt 0:00:01]} e6 {[%emt 0:00:04]} 3. Nc3 {[%emt 0:00:02]} d5 {[%emt 0:00:04]} 4. cxd5 {[%emt 0:00:02]} exd5 {[%emt 0:00:01]} 5. Bg5 {[%emt 0:00:01]} c6 {[%emt 0:00:02]} 6. e3 {[%emt 0:00:01]} Nbd7 {[%emt 0:00:04]} 7. Bd3 {[%emt 0:00:04]} Be7 {[%emt 0:00:03]} 8. Qc2 {[%emt 0:00:02]} Nf8 {[%emt 0:00:04]} 9. Nge2 {[%emt 0:00:05]} Ne6 {[%emt 0:00:08]} 10. Bh4 {[%emt 0:00:02]} g6 {[%emt 0:00:08]} 11. f3 {[%emt 0:00:09]} O-O {[%emt 0:00:09]} 12. O-O {[%emt 0:00:04]} b6 {[%emt 0:00:08]} 13. Rad1 {[%emt 0:00:28]} Bb7 {[%emt 0:00:06]} 14. Kh1 {[%emt 0:00:49]} Nh5 {[%emt 0:01:09]} 15. Bxe7 {[%emt 0:04:15]} Qxe7 {[%emt 0:00:02]} 16. e4 {[%emt 0:00:21]} Rac8 {[%emt 0:03:48]} 17. Qd2 {[%emt 0:01:28]} Rcd8 {[%emt 0:02:22]} 18. Qe3 {[%emt 0:04:25]} Rfe8 {[%emt 0:01:11]} 19. e5 {[%emt 0:02:23]} f6 {[%emt 0:03:01]} 20. f4 {[%emt 0:00:07]} fxe5 {[%emt 0:00:41]} 21. fxe5 {[%emt 0:00:15]} c5 {[%emt 0:01:04]} 22. Rde1 {[%emt 0:03:01]} Qh4 {[%emt 0:00:59]} 23. Nb5 {[%emt 0:01:06]} Rf8 {[%emt 0:00:56]} 24. Kg1 {[%emt 0:04:09]} Ba8 {[%emt 0:06:23]} 25. Nxa7 {[%emt 0:01:28]} cxd4 {[%emt 0:01:16]} 26. Qd2 {[%emt 0:00:01]} Ng5 {[%emt 0:01:27]} 27. Nb5 {[%emt 0:00:54]} Ne4 {[%emt 0:01:03]} 28. Bxe4 {[%emt 0:00:21]} dxe4 {[%emt 0:00:10]} 29. Nexd4 {[%emt 0:00:33]} Nf4 {[%emt 0:00:34]} 30. Qe3 {[%emt 0:01:57]} Nd3 {[%emt 0:00:51]} 31. Rd1 {[%emt 0:00:43]} Nxe5 {[%emt 0:00:52]} 32. Ne6 {[%emt 0:00:28]} Rxd1 {[%emt 0:00:16]} 33. Rxd1 {[%emt 0:00:04]} Qg4 {[%emt 0:00:59]} 34. Qb3 {[%emt 0:00:18]} Nf3+ {[%emt 0:00:01]} 35. Kh1 {[%emt 0:00:05]} Nd2 {[%emt 0:00:06]} 36. Qc2 {[%emt 0:00:16]} e3 {[%emt 0:00:13]} 37. Nf4 {[%emt 0:00:32]} Qxf4 {[%emt 0:00:12]} 0-1